bitfinex/quotes_SOLUSD_20260213
["timestamp","ask_amount","ask_price","bid_price","bid_amount"]
[1771012503015,3.84608341,84.92,84.881,1.18475154]
[1771012503220,3.84608341,84.92,84.88,3.84608341]
[1771012503221,0.2,84.93,84.911,1.18475154]
[1771012503530,0.2,84.95,84.921,1.18475154]
[1771012503834,4.63351114,84.95,84.921,1.18475154]
[1771012504212,0.2,84.95,84.921,1.18475154]
[1771012505121,4.04608341,84.95,84.921,1.18475154]
[1771012505327,4.04608341,84.95,84.911,1.18475154]
[1771012505328,0.58417407,84.945,84.911,1.18475154]
[1771012505534,0.2,84.95,84.911,1.18475154]
[1771012505716,0.2,84.95,84.921,1.18475154]
[1771012506240,0.58257781,84.943,84.911,1.18475154]
[1771012506417,0.58257781,84.939,84.901,1.18475154]
[1771012506617,3.84608341,84.93,84.901,1.18475154]
[1771012506916,4.6270817,84.94,84.901,1.18475154]
[1771012507140,0.58099829,84.939,84.901,1.18475154]
[1771012508616,0.2,84.94,84.921,1.18475154]
[1771012509419,0.2,84.94,84.911,1.18475154]
[1771012511823,0.2,84.94,84.921,1.18475154]
[1771012513945,1.20058811,84.939,84.9,3.84608341]
[1771012515940,1.20058811,84.939,84.901,1.18475154]
[1771012516256,4.04608341,84.94,84.887,1.18475154]
[1771012516257,3.84608341,84.91,84.887,1.18475154]
[1771012516433,1.20058811,84.912,84.887,1.18475154]
[1771012517125,1.20058811,84.937,84.887,1.18475154]
[1771012517331,3.84608341,84.93,84.901,1.18475154]
[1771012517947,1.20058811,84.931,84.901,1.18475154]
[1771012518153,0.2,84.94,84.901,1.18475154]
[1771012518450,4.04608341,84.94,84.901,1.18475154]
[1771012518657,0.2,84.94,84.911,1.18475154]
[1771012519653,1.40058811,84.94,84.911,1.18475154]
[1771012522165,1.20058811,84.939,84.901,1.18475154]
[1771012522455,1.20058811,84.929,84.901,1.18475154]
[1771012523752,1.20058811,84.929,84.887,1.18475154]
[1771012523938,1.20058811,84.909,84.871,1.18475154]
[1771012524131,1.20058811,84.909,84.874,1.18475154]
[1771012524827,11.77463332,84.929,84.874,1.18475154]
[1771012524828,3.84608341,84.92,84.874,1.18475154]
[1771012525038,1.20058811,84.939,84.891,1.18475154]
[1771012525743,1.20058811,84.939,84.901,1.18475154]
[1771012526838,4.04608341,84.94,84.911,1.18475154]
[1771012526839,0.2,84.94,84.911,1.18475154]
[1771012529354,0.2,84.94,84.921,1.18475154]
[1771012530658,4.04608341,84.95,84.922,1.18475154]
[1771012530659,0.2,84.95,84.922,1.18475154]
[1771012530843,0.2,84.95,84.931,1.20892412]
[1771012532144,0.2,84.95,84.921,1.20892412]
[1771012532446,1.37296152,84.95,84.921,1.20892412]
[1771012533151,1.17296152,84.949,84.918,37.20892412]
[1771012533348,0.2,84.95,84.93,3.84608341]
[1771012533649,0.2,84.95,84.936,1.20892412]
[1771012534250,0.2,84.95,84.941,1.20892412]
[1771012535762,1.17296152,84.971,84.941,1.20892412]
[1771012536154,1.17296152,84.969,84.941,1.20892412]
[1771012536865,1.17296152,84.969,84.931,1.20892412]
[1771012537162,1.17296152,84.976,84.951,1.19835117]
[1771012537367,0.2,84.98,84.961,1.19835117]
[1771012538068,1.21341138,84.979,84.948,26.46]
[1771012538263,1.21341138,84.979,84.941,1.19835117]
[1771012538466,4.04608341,84.98,84.941,1.19835117]
[1771012538467,1.21341138,84.969,84.941,1.19835117]
[1771012538651,1.21341138,84.969,84.932,1.19835117]
[1771012540355,1.21341138,84.969,84.941,1.19835117]
[1771012541763,1.21341138,84.969,84.929,35.96]
[1771012541764,1.21341138,84.979,84.951,1.19835117]
[1771012542560,0.2,84.98,84.961,1.19835117]
[1771012542967,1.41341138,84.98,84.954,1.19835117]
[1771012544882,0.2,84.98,84.96,5.03229634]
[1771012545066,0.2,84.98,84.942,35.92]
[1771012545067,1.41341138,84.98,84.951,1.19835117]
[1771012545254,1.41341138,84.98,84.95,3.83394517]
[1771012545574,1.41341138,84.98,84.948,1.19835117]
[1771012545875,1.41341138,84.98,84.951,1.19835117]
[1771012548658,0.2,84.98,84.961,1.19835117]
[1771012549858,1.21341138,84.979,84.946,1.19835117]
[1771012550057,1.21341138,84.979,84.945,35.9]
[1771012550058,0.2,84.98,84.951,1.19835117]
[1771012550256,0.2,84.98,84.961,1.19835117]
[1771012553482,1.41341138,84.98,84.951,1.19835117]
[1771012555471,1.21341138,84.979,84.946,35.88]
[1771012555677,1.21341138,84.979,84.947,1.19835117]
[1771012555879,1.21341138,84.979,84.946,35.88]
[1771012555880,1.21341138,84.969,84.946,35.88]
[1771012556372,1.21341138,84.969,84.938,1.19835117]
[1771012556559,1.21341138,84.969,84.932,35.88]
[1771012556767,1.21341138,84.949,84.924,1.19835117]
[1771012557955,3.83394517,84.96,84.924,1.19835117]
[1771012558270,1.21341138,84.959,84.931,1.19835117]
[1771012560380,1.21341138,84.959,84.92,3.83394517]
[1771012560577,1.21341138,84.939,84.918,35.9]
[1771012560765,1.21341138,84.939,84.849,70.85]
[1771012560766,1.21341138,84.929,84.901,1.19835117]
[1771012561163,1.21341138,84.929,84.898,35.88]
[1771012561487,1.21341138,84.929,84.899,1.19450965]
[1771012561664,3.83394517,84.94,84.901,1.19450965]
[1771012562175,5.02422538,84.94,84.901,1.19450965]
[1771012562371,3.83394517,84.94,84.903,1.19450965]
[1771012562571,3.83394517,84.94,84.88,3.83394517]
[1771012562572,1.19028021,84.952,84.921,1.19450965]
[1771012562783,1.19028021,84.952,84.886,29.451049]
[1771012562784,1.19028021,84.949,84.914,1.19450965]
[1771012564272,1.19028021,84.939,84.914,1.19450965]
[1771012565359,1.19028021,84.949,84.92,3.83394517]
[1771012565579,1.19028021,84.949,84.921,1.19450965]
[1771012567069,3.83394517,84.96,84.931,1.19450965]
[1771012568473,1.19028021,84.961,84.931,1.19450965]
[1771012568670,1.19028021,84.969,84.931,1.19450965]
[1771012569258,1.19028021,84.969,84.941,1.19450965]
[1771012569871,1.19028021,84.977,84.951,1.19450965]
[1771012570073,1.19028021,84.977,84.92,3.83394517]
[1771012570074,1.19028021,85.032,84.993,1.19450965]
[1771012570263,1.19028021,85.019,84.98,39.71394517]
[1771012570679,4.03394517,85.02,84.96,3.83394517]
[1771012570680,1.19028021,84.989,84.963,1.19450965]
[1771012571278,1.19028021,84.999,84.971,1.19450965]
[1771012571466,1.19028021,84.999,84.98,3.83394517]
[1771012571662,1.19028021,84.999,84.971,1.19450965]
[1771012571883,1.19028021,84.999,84.97,3.83394517]
[1771012572693,1.19028021,84.999,84.963,1.19450965]
[1771012573598,1.19028021,84.989,84.962,35.88]
[1771012573885,1.19028021,84.989,84.956,1.19450965]
[1771012573886,1.19028021,84.989,84.952,1.19450965]
[1771012574102,1.19028021,84.979,84.95,3.83394517]
[1771012575174,1.19028021,84.979,84.948,35.88]
[1771012575574,1.19028021,84.979,84.94,40.88845482]
[1771012576088,1.19028021,84.978,84.94,5.02845482]
[1771012576288,3.83394517,84.97,84.939,35.86]
[1771012576486,11.76770452,84.979,84.923,1.19416741]
[1771012576487,1.19028021,84.959,84.923,1.19416741]
[1771012576678,1.19028021,84.959,84.924,24.32]
[1771012577192,1.19028021,84.959,84.93,5.02063397]
[1771012578169,3.83394517,84.97,84.931,1.17929609]
[1771012578381,1.19028021,84.969,84.931,1.17929609]
[1771012578582,1.19028021,84.969,84.94,5.01324126]
[1771012579092,1.19028021,84.969,84.941,1.17198829]
[1771012581195,1.19028021,84.979,84.95,3.83394517]
[1771012582794,1.19028021,84.969,84.935,35.84]
[1771012583799,1.19028021,84.969,84.935,36.98358689]
[1771012588199,1.19028021,84.959,84.935,35.84]
[1771012588706,1.19028021,84.959,84.94,3.83394517]
[1771012588878,1.19028021,84.959,84.935,36.94988189]
[1771012589077,1.19028021,84.959,84.935,36.94337138]
[1771012589278,1.19028021,84.969,84.936,1.10337138]
[1771012589594,1.19028021,84.969,84.941,1.10337138]
[1771012590491,1.19028021,84.983,84.951,1.09693565]
[1771012591080,1.0749418,84.979,84.941,1.08428511]
[1771012591299,1.0749418,84.969,84.94,35.82]
[1771012591482,1.0749418,84.959,84.94,35.82]
[1771012591814,1.0749418,84.949,84.92,3.83394517]
[1771012591998,1.0749418,84.949,84.891,5.36086188]
[1771012591999,1.0749418,84.949,84.912,1.07806861]
[1771012597289,1.0749418,84.949,84.91,39.63394517]
[1771012597290,1.13297378,84.939,84.91,35.8]
[1771012597609,1.13297378,84.939,84.91,39.63394517]
[1771012600609,3.83394517,84.96,84.758,69.75705097]
[1771012600610,1.13297378,84.929,84.896,1.02523673]
[1771012601103,1.13297378,84.929,84.891,1.01969845]
[1771012602808,1.13297378,84.929,84.89,3.83394517]
[1771012602809,1.13297378,84.919,84.89,3.83394517]
[1771012603893,1.13297378,84.919,84.886,1.01422379]
[1771012604995,1.13297378,84.919,84.89,3.84092336]
[1771012605197,1.13297378,84.919,84.89,4.83909758]
[1771012605407,30.32,84.942,84.885,35.78]
[1771012605408,1.13297378,84.931,84.901,0.99817422]
[1771012605712,1.13297378,84.929,84.901,0.99817422]
[1771012606992,3.84092336,84.92,84.891,0.98777939]
[1771012607306,1.13297378,84.919,84.891,0.98777939]
[1771012609308,1.13297378,84.919,84.89,3.84092336]
[1771012609515,1.13297378,84.919,84.891,0.97762198]
[1771012610023,1.13297378,84.919,84.89,3.84092336]
[1771012611193,1.13297378,84.919,84.889,35.74]
[1771012611698,1.13297378,84.919,84.89,3.84092336]
[1771012612512,1.13297378,84.919,84.891,0.96281919]
[1771012615118,30.26,84.941,84.889,35.74]
[1771012615119,1.13297378,84.909,84.889,35.74]
[1771012615499,1.13297378,84.909,84.878,0.94852064]
[1771012620638,1.13297378,84.909,84.848,11.78566521]
[1771012620639,1.13297378,84.889,84.855,0.92576387]
[1771012620926,1.13297378,84.889,84.85,4.04092336]
[1771012620927,1.13297378,84.889,84.861,0.9170229]
[1771012622121,1.09151787,84.901,84.871,0.91272756]
[1771012623316,3.84092336,84.9,84.871,0.91272756]
[1771012623507,1.09151787,84.899,84.871,0.91272756]
[1771012623710,1.09151787,84.909,84.871,0.91272756]
[1771012624910,1.09151787,84.909,84.881,0.90013532]
[1771012626938,1.09151787,84.909,84.875,0.89603396]
[1771012634353,1.09151787,84.899,84.861,0.86487427]
[1771012637645,3.84092336,84.89,84.861,0.86487427]
[1771012637845,29.44272102,84.911,84.861,0.86487427]
[1771012637846,1.09151787,84.889,84.861,0.86487427]
[1771012640251,1.09151787,84.889,84.855,0.84332332]
[1771012643355,1.09151787,84.889,84.86,4.6740186]
[1771012645048,1.09151787,84.889,84.86,3.84092336]
[1771012645251,1.09151787,84.889,84.861,0.82647082]
[1771012647153,1.09151787,84.889,84.853,0.8199977]
[1771012648759,1.09151787,84.887,84.85,1.01367243]
[1771012648963,1.09151787,84.879,84.851,0.81367243]
[1771012652765,0.98366228,84.889,84.861,0.80145199]
[1771012661959,0.98366228,84.889,84.852,0.77061698]
[1771012663086,3.84092336,84.9,84.85,4.04092336]
[1771012663087,1.00588685,84.887,84.85,0.2]
[1771012663379,1.00588685,84.879,84.841,0.9436973]
[1771012665166,1.00588685,84.879,84.851,0.9436973]
[1771012666499,1.00588685,84.889,84.861,0.9436973]
[1771012675176,1.00588685,84.889,84.851,0.93127728]
[1771012675378,1.00588685,84.879,84.851,0.93127728]
[1771012675693,1.00588685,84.879,84.841,0.93127728]
[1771012677985,1.00588685,84.869,84.841,0.93127728]
[1771012679175,1.00588685,84.869,84.838,0.91835555]
[1771012679487,11.78152774,84.879,84.821,0.91835555]
[1771012679488,1.00588685,84.859,84.821,0.91835555]
[1771012681707,3.84460861,84.85,84.821,0.91835555]
[1771012681988,0.91553516,84.849,84.821,0.91835555]
[1771012689289,0.91553516,84.849,84.82,0.1]
[1771012689489,0.91553516,84.849,84.821,0.885751]
[1771012691509,0.91553516,84.849,84.82,0.1]
[1771012691687,0.91553516,84.839,84.82,0.1]
[1771012692589,0.91553516,84.839,84.82,0.97755473]
[1771012697915,103.5,84.871,84.82,0.97755473]
[1771012697916,0.91553516,84.859,84.821,0.86199027]
[1771012701300,0.91553516,84.849,84.82,0.1]
[1771012701518,0.91553516,84.849,84.821,0.85460338]
[1771012708329,0.91553516,84.849,84.82,3.94460861]
[1771012708330,0.91553516,84.865,84.831,0.83833107]
[1771012708527,0.91553516,84.865,84.841,0.83833107]
[1771012709040,0.91553516,84.865,84.831,0.83611203]
[1771012709327,0.91553516,84.859,84.831,0.83611203]
[1771012711434,0.91553516,84.859,84.82,0.1]
[1771012711435,0.94728884,84.849,84.82,0.1]
[1771012711943,0.94728884,84.849,84.82,4.77209642]
[1771012712940,0.94728884,84.839,84.82,0.1]
[1771012713149,11.78578163,84.848,84.8,3.84460861]
[1771012713150,0.94728884,84.829,84.8,3.84460861]
[1771012713456,0.94728884,84.829,84.801,0.92539331]
[1771012713656,0.94728884,84.829,84.791,0.92539331]
[1771012713962,0.94728884,84.819,84.79,0.2]
[1771012715231,3.84460861,84.84,84.79,0.2]
[1771012715232,0.94728884,84.809,84.79,0.2]
[1771012715433,0.94728884,84.799,84.773,0.9212762]
[1771012715733,0.94728884,84.789,84.77,0.2]
[1771012715935,0.94728884,84.789,84.721,61.9]
[1771012715936,0.94728884,84.779,84.741,0.91925304]
[1771012716137,0.94728884,84.769,84.741,0.91925304]
[1771012716531,0.94728884,84.769,84.735,0.91925304]
[1771012716863,0.94728884,84.759,84.73,0.2]
[1771012717042,0.94728884,84.749,84.73,0.2]
[1771012718551,11.79694552,84.768,84.73,0.2]
[1771012718552,0.8809977,84.761,84.731,0.91332194]
[1771012718729,0.8809977,84.761,84.73,4.04460861]
[1771012718730,0.8809977,84.768,84.741,0.91332194]
[1771012719539,0.8809977,84.768,84.735,0.91322492]
[1771012720056,0.8809977,84.768,84.741,0.91312901]
[1771012720240,0.8809977,84.768,84.731,0.91312901]
[1771012722750,0.8809977,84.759,84.73,0.2]
[1771012724337,0.8809977,84.749,84.73,0.2]
[1771012724563,3.84460861,84.75,84.7,0.1]
[1771012724564,0.8809977,84.739,84.711,0.95357477]
[1771012725253,3.84460861,84.75,84.711,0.95357477]
[1771012725463,0.8809977,84.749,84.711,0.95357477]
[1771012726139,0.8809977,84.749,84.721,0.95357477]
[1771012726437,0.8809977,84.769,84.731,0.95357477]
[1771012729657,0.8809977,84.769,84.74,3.85464243]
[1771012729852,4.73564013,84.79,84.751,0.95357477]
[1771012730257,103.5,84.837,84.731,35.3]
[1771012730258,0.8809977,84.789,84.761,0.95357477]
[1771012730455,0.8809977,84.796,84.761,0.95357477]
[1771012731354,0.8809977,84.789,84.737,0.95357477]
[1771012731668,0.8809977,84.789,84.75,4.8082172]
[1771012733148,0.8809977,84.789,84.751,0.95357477]
[1771012738570,0.8809977,84.809,84.771,0.95357477]
[1771012738770,0.8809977,84.809,84.781,0.95357477]
[1771012739458,0.8809977,84.809,84.76,3.85464243]
[1771012739459,0.8809977,84.799,84.761,0.95357477]
[1771012739657,0.8809977,84.799,84.771,0.95357477]
[1771012740169,0.8809977,84.809,84.771,0.95357477]
[1771012740475,0.8809977,84.809,84.781,0.95357477]
[1771012742264,0.8809977,84.809,84.771,0.91184772]
[1771012742467,0.92557115,84.799,84.771,0.91184772]
[1771012746977,0.92557115,84.809,84.771,0.91184772]
[1771012747573,0.92557115,84.821,84.791,0.91184772]
[1771012747772,30.18,84.841,84.791,0.91184772]
[1771012747773,0.92557115,84.819,84.791,0.91184772]
[1771012749110,0.92557115,84.809,84.774,0.91184772]
[1771012768711,0.92557115,84.799,84.768,0.91184772]
[1771012769098,0.92557115,84.799,84.771,0.91184772]
[1771012773017,0.92557115,84.799,84.761,0.86044873]
[1771012773195,0.92149745,84.789,84.761,0.86044873]
[1771012773391,0.92149745,84.789,84.756,0.86044873]
[1771012779613,0.92149745,84.789,84.761,0.86480845]
[1771012785122,0.92149745,84.789,84.75,3.85464243]
[1771012785123,0.92149745,84.789,84.751,0.86480845]
[1771012788722,0.92294522,84.779,84.751,0.86480845]
[1771012790708,0.92294522,84.779,84.746,0.86480845]
[1771012791512,3.8539122,84.8,84.719,0.86480845]
[1771012791513,0.92294522,84.759,84.719,0.86480845]
[1771012791731,0.92294522,84.759,84.68,3.9539122]
[1771012791732,0.92294522,84.749,84.72,0.86480845]
[1771012792604,0.92294522,84.739,84.711,0.86480845]
[1771012792908,3.8539122,84.76,84.71,3.9539122]
[1771012792909,4.77685742,84.76,84.731,0.86480845]
[1771012793113,0.92294522,84.759,84.731,0.86480845]
[1771012794526,3.8539122,84.75,84.731,0.86480845]
[1771012794721,0.92294522,84.749,84.731,0.86480845]
[1771012795720,0.92294522,84.749,84.721,0.86480845]
[1771012797110,0.92294522,84.759,84.731,0.86480845]
[1771012799035,3.8539122,84.76,84.71,0.96480845]
[1771012799036,0.92294522,84.739,84.71,0.96480845]
[1771012799337,0.92294522,84.739,84.71,0.8671045]
[1771012799625,0.92294522,84.729,84.71,0.00229605]
[1771012800427,0.92294522,84.729,84.71,3.85620825]
[1771012800603,3.8539122,84.75,84.711,0.86480845]
[1771012800803,0.92294522,84.749,84.711,0.86480845]
[1771012801109,0.92294522,84.749,84.721,0.88691834]
[1771012801512,0.92294522,84.749,84.71,3.85620825]
[1771012801513,0.89238824,84.739,84.711,0.88691834]
[1771012801719,0.89238824,84.749,84.711,0.88691834]
[1771012801926,0.89238824,84.739,84.711,0.88691834]
[1771012803138,0.89238824,84.739,84.71,0.00229605]
[1771012803509,0.89238824,84.739,84.711,0.88691834]
[1771012804328,0.89238824,84.739,84.71,3.85620825]
[1771012804910,0.89238824,84.739,84.711,0.88691834]
[1771012805231,0.89238824,84.739,84.71,0.00229605]
[1771012805408,29.76,84.759,84.71,0.00229605]
[1771012805409,0.89238824,84.729,84.71,0.00229605]
[1771012806822,0.89238824,84.748,84.711,0.88691834]
[1771012807134,3.8539122,84.77,84.741,0.88691834]
[1771012807334,3.8539122,84.76,84.741,0.88691834]
[1771012807511,11.79538268,84.779,84.741,0.88691834]
[1771012807512,3.8539122,84.77,84.741,0.88691834]
[1771012808629,3.8539122,84.78,84.741,0.88691834]
[1771012809040,3.8539122,84.77,84.741,0.88691834]
[1771012809215,0.89238824,84.769,84.741,0.88691834]
[1771012810630,0.89238824,84.779,84.741,0.88691834]
[1771012811336,0.89238824,84.769,84.741,0.88691834]
[1771012811939,0.89238824,84.769,84.74,3.8539122]
[1771012811940,3.19021828,84.78,84.742,0.88691834]
[1771012812236,29.76,84.803,84.719,0.88691834]
[1771012812237,3.8539122,84.77,84.719,0.88691834]
[1771012812445,3.8539122,84.77,84.731,0.88691834]
[1771012813629,41.27851361,84.79,84.731,0.88691834]
[1771012813630,3.8539122,84.76,84.731,0.88691834]
[1771012814528,4.71522285,84.76,84.731,0.88691834]
[1771012815428,0.86233182,84.759,84.731,0.88691834]
[1771012816227,4.61729252,84.797,84.721,0.88691834]
[1771012816228,0.86334126,84.749,84.721,0.88691834]
[1771012816436,0.86334126,84.729,84.702,0.88691834]
[1771012817143,41.29368496,84.759,84.702,0.88691834]
[1771012817144,3.8539122,84.72,84.702,0.88691834]
[1771012817523,0.8643391,84.723,84.702,0.88691834]
[1771012819147,0.88477431,84.719,84.7,0.1]
[1771012819344,3.8539122,84.72,84.7,0.98691834]
[1771012819722,0.88477431,84.751,84.701,0.88691834]
[1771012819942,0.89238824,84.739,84.701,0.88691834]
[1771012820137,3.8539122,84.73,84.701,0.88691834]
[1771012820343,0.89238824,84.735,84.701,0.88691834]
[1771012820548,0.89238824,84.729,84.701,0.88691834]
[1771012821646,0.89238824,84.729,84.7,0.1]
[1771012821836,0.89238824,84.719,84.7,0.1]
[1771012822023,11.80099677,84.739,84.7,0.1]
[1771012822024,3.8539122,84.71,84.7,0.1]
[1771012822228,0.89238824,84.709,84.68,0.98691834]
[1771012822435,0.89238824,84.699,84.68,0.1]
[1771012822851,11.80512106,84.709,84.67,0.1]
[1771012822852,0.89238824,84.689,84.67,0.1]
[1771012823031,3.8539122,84.67,84.651,0.88691834]
[1771012823232,0.72435545,84.678,84.651,0.88691834]
[1771012823849,3.8539122,84.67,84.64,0.1]
[1771012824046,3.8539122,84.67,84.644,0.88691834]
[1771012824047,4.58802092,84.67,84.644,0.88691834]
[1771012824348,29.64,84.704,84.6,6.2606968]
[1771012824349,0.53410872,84.659,84.6,6.2606968]
[1771012824527,5.36086188,84.678,84.6,6.2606968]
[1771012824528,0.53410872,84.667,84.631,0.88691834]
[1771012824726,47.21596091,84.718,84.641,0.88691834]
[1771012824727,30.0,84.657,84.641,0.88691834]
[1771012825135,3.8539122,84.65,84.629,0.88691834]
[1771012825349,0.36703794,84.61,84.608,16.48]
[1771012825552,0.89238824,84.644,84.608,16.48]
[1771012825733,0.89238824,84.639,84.608,16.48]
[1771012825941,0.89238824,84.648,84.61,3.8539122]
[1771012826147,3.8539122,84.66,84.62,3.8539122]
[1771012826333,0.89238824,84.662,84.63,3.8539122]
[1771012826524,0.89238824,84.662,84.606,34.52]
[1771012826525,0.89238824,84.69,84.64,3.8539122]
[1771012826726,0.89238824,84.669,84.63,3.8539122]
[1771012826955,0.89238824,84.669,84.64,10.34759339]
[1771012827829,0.89238824,84.679,84.641,0.88691834]
[1771012828049,0.89238824,84.679,84.651,0.88691834]
[1771012828861,0.89238824,84.659,84.623,34.5]
[1771012829069,0.89238824,84.659,84.6,0.1]
[1771012829070,0.89238824,84.649,84.611,0.88691834]
[1771012829572,0.89238824,84.649,84.621,0.88691834]
[1771012829956,18.98,84.684,84.602,34.48]
[1771012829957,10.34759339,84.67,84.631,0.88691834]
[1771012830152,0.89238824,84.671,84.641,0.88691834]
[1771012830353,0.89238824,84.679,84.641,0.88691834]
[1771012830967,10.34759339,84.67,84.641,0.88691834]
[1771012831156,0.98097422,84.672,84.641,0.88691834]
[1771012831655,0.98097422,84.679,84.65,10.34759339]
[1771012832580,0.98097422,84.679,84.641,0.91292044]
[1771012832973,0.98097422,84.679,84.651,0.91292044]
[1771012833155,10.34759339,84.68,84.651,0.91292044]
[1771012833357,0.98097422,84.679,84.651,0.91292044]
[1771012833661,0.98097422,84.679,84.65,10.34759339]
[1771012833862,0.98097422,84.679,84.643,0.91292044]
[1771012834181,0.98097422,84.679,84.633,34.48]
[1771012834182,0.98097422,84.669,84.634,0.91292044]
[1771012835985,0.98097422,84.669,84.64,10.34759339]
[1771012836288,0.98097422,84.679,84.641,0.91292044]
[1771012836460,0.98097422,84.679,84.651,0.91292044]
[1771012840874,0.90986262,84.659,84.633,35.37988112]
[1771012841055,0.90986262,84.659,84.634,0.89988112]
[1771012841663,0.90986262,84.649,84.61,0.89988112]
[1771012841859,11.25745601,84.64,84.611,0.89988112]
[1771012842060,0.90986262,84.64,84.611,0.89988112]
[1771012842766,0.90986262,84.647,84.611,0.89988112]
[1771012843164,0.90986262,84.639,84.611,0.89988112]
[1771012844684,0.90986262,84.646,84.611,0.89988112]
[1771012845183,0.90986262,84.646,84.621,0.89988112]
[1771012845566,0.90986262,84.646,84.611,0.89988112]
[1771012848078,0.90986262,84.646,84.621,0.89988112]
[1771012848883,11.81199084,84.66,84.621,0.89988112]
[1771012848884,0.90986262,84.697,84.621,0.89988112]
[1771012849085,11.81199084,84.797,84.606,34.44]
[1771012849086,0.90986262,84.669,84.631,0.89988112]
[1771012849700,0.90986262,84.684,84.651,0.89988112]
[1771012849897,0.90986262,84.689,84.651,0.89988112]
[1771012850068,0.90986262,84.679,84.651,0.89988112]
[1771012854375,29.51280265,84.709,84.64,3.86238507]
[1771012854376,0.90986262,84.7,84.671,0.89988112]
[1771012855296,0.90986262,84.699,84.671,0.89988112]
[1771012855495,29.50941799,84.719,84.661,34.38]
[1771012855496,0.90986262,84.689,84.662,0.89988112]
[1771012855699,0.90986262,84.689,84.652,0.89988112]
[1771012856478,0.90986262,84.659,84.621,0.89988112]
[1771012856990,0.90986262,84.678,84.641,0.89988112]
[1771012857190,4.77224769,84.67,84.641,0.89988112]
[1771012858099,0.90986262,84.669,84.632,0.89988112]
[1771012858300,0.90986262,84.659,84.632,0.89988112]
[1771012858501,0.90986262,84.659,84.62,3.86238507]
[1771012858502,0.90986262,84.659,84.623,0.89988112]
[1771012859192,0.90986262,84.659,84.617,34.34]
[1771012859193,0.90986262,84.649,84.617,34.34]
[1771012860381,0.90986262,84.639,84.617,34.34]
[1771012860691,0.90986262,84.639,84.6,0.1]
[1771012860692,0.90986262,84.639,84.601,0.89988112]
[1771012861398,3.86238507,84.64,84.6,0.1]
[1771012861399,0.92724736,84.619,84.6,0.1]
[1771012861780,0.92724736,84.627,84.6,0.1]
[1771012861977,3.86238507,84.62,84.6,0.1]
[1771012862198,4.78963243,84.62,84.6,0.1]
[1771012862581,0.92724736,84.619,84.6,0.1]
[1771012863705,0.92724736,84.609,84.583,34.34]
[1771012864405,0.92724736,84.609,84.572,0.90701333]
[1771012864406,0.92724736,84.589,84.56,0.1]
[1771012864606,11.81781654,84.618,84.56,0.1]
[1771012864607,0.92724736,84.579,84.56,0.1]
[1771012865506,29.3,84.615,84.521,34.32]
[1771012865507,0.92724736,84.569,84.521,34.32]
[1771012865709,0.92724736,84.569,84.5,6.17722238]
[1771012865710,10.36046255,84.55,84.515,35.22701333]
[1771012865884,0.92724736,84.549,84.515,35.22701333]
[1771012866081,0.92724736,84.549,84.532,16.70103876]
[1771012866285,10.36046255,84.54,84.532,16.08548214]
[1771012866510,10.36046255,84.55,84.532,16.08548214]
[1771012866698,10.36046255,84.56,84.532,17.07853678]
[1771012866900,5.36086188,84.614,84.532,17.07853678]
[1771012866901,41.36577985,84.611,84.533,0.99305464]
[1771012867104,41.36577985,84.611,84.541,0.99305464]
[1771012867105,10.36046255,84.58,84.541,0.99305464]
[1771012867414,10.36046255,84.56,84.541,0.99305464]
[1771012867788,29.55448789,84.59,84.541,0.99305464]
[1771012867988,10.36046255,84.57,84.541,0.99305464]
[1771012868801,29.55448789,84.59,84.541,0.99305464]
[1771012868802,10.36046255,84.58,84.541,0.99305464]
[1771012869108,10.36046255,84.66,84.561,0.99305464]
[1771012869109,10.36046255,84.6,84.561,0.99305464]
[1771012869294,10.36046255,84.59,84.545,0.99305464]
[1771012869497,29.28,84.624,84.533,0.99305464]
[1771012869498,10.36046255,84.57,84.533,0.99305464]
[1771012869696,4.61729252,84.611,84.551,0.99305464]
[1771012869697,10.36046255,84.59,84.551,0.99305464]
[1771012869997,10.36046255,84.6,84.561,0.99305464]
[1771012870190,10.36046255,84.59,84.561,0.99305464]
[1771012871188,10.36046255,84.6,84.561,0.99305464]
[1771012871512,10.36046255,84.6,84.532,16.08548214]
[1771012871513,10.36046255,84.61,84.571,0.99305464]
[1771012872392,10.36046255,84.6,84.571,0.99305464]
[1771012872591,10.36046255,84.59,84.551,0.99305464]
[1771012872791,10.36046255,84.6,84.561,0.99305464]
[1771012873192,10.36046255,84.59,84.561,0.99305464]
[1771012876106,29.24,84.616,84.55,44.68046255]
[1771012876107,10.36046255,84.58,84.552,0.99305464]
[1771012876509,0.02010175,84.589,84.552,0.99305464]
[1771012877314,10.36046255,84.58,84.552,0.99305464]
[1771012878107,41.36382437,84.615,84.533,0.99305464]
[1771012878108,0.02384222,84.569,84.533,0.99305464]
[1771012878306,10.36046255,84.55,84.523,0.99305464]
[1771012878515,29.22,84.576,84.53,0.99305464]
[1771012878516,10.36046255,84.56,84.53,0.99305464]